Department family,Entity,Date,Expense type,Expense area,Supplier,Transaction number,Amount,VAT registration number
Dept of Health,MHRA,02/08/2016,Software & Licenses,Information Management,MICROSOFT LTD,600105467,178807.82,724594615
Dept of Health,MHRA,02/08/2016,Application Services and Maintenance,Information Management,REDROCK CONSULTING LTD,600105547,86513.06,862247715
Dept of Health,MHRA,02/08/2016,Temporary Staff,Clinical Practice Research Datalink,ROYAL COLLEGE OF GENERAL PRACTITIONERS,600104885,57600.00,997334369
Dept of Health,MHRA,05/08/2016,Capital Expenditure,Information Management,HITACHI CONSULTING,600105351,41100.00,887129187
Dept of Health,MHRA,05/08/2016,Application Services and Maintenance,Information Management,DEPARTMENT OF HEALTH,600105648,149661.42,888815064
Dept of Health,MHRA,05/08/2016,"Advertising, Publicity & Promotion",Communications,GEORGE & DRAGON LONDON LLP,600105704,48000.00,893682176
Dept of Health,MHRA,09/08/2016,UK Hotel/Accommodation,Clinical Practice Research Datalink,CLARITY TRAVEL MANAGEMENT,600105917,269.59,197694731
Dept of Health,MHRA,09/08/2016,UK Rail/Tube/Tram,Clinical Practice Research Datalink,CLARITY TRAVEL MANAGEMENT,600105917,797.70,197694731
Dept of Health,MHRA,09/08/2016,Overseas Air,Clinical Practice Research Datalink,CLARITY TRAVEL MANAGEMENT,600105917,121.84,197694731
Dept of Health,MHRA,09/08/2016,Overseas Hotel/Accommodation,Clinical Practice Research Datalink,CLARITY TRAVEL MANAGEMENT,600105917,5375.91,197694731
Dept of Health,MHRA,09/08/2016,Committee T&S,Clinical Practice Research Datalink,CLARITY TRAVEL MANAGEMENT,600105917,229.00,197694731
Dept of Health,MHRA,09/08/2016,UK Rail/Tube/Tram,Communications,CLARITY TRAVEL MANAGEMENT,600105917,752.00,197694731
Dept of Health,MHRA,09/08/2016,Overseas Hotel/Accommodation,Communications,CLARITY TRAVEL MANAGEMENT,600105917,219.04,197694731
Dept of Health,MHRA,09/08/2016,Training inc T&S,Communications,CLARITY TRAVEL MANAGEMENT,600105917,253.11,197694731
Dept of Health,MHRA,09/08/2016,UK Rail/Tube/Tram,Directorate,CLARITY TRAVEL MANAGEMENT,600105917,739.10,197694731
Dept of Health,MHRA,09/08/2016,Committee T&S,Directorate,CLARITY TRAVEL MANAGEMENT,600105917,83.70,197694731
Dept of Health,MHRA,09/08/2016,UK Rail/Tube/Tram,Human Resources,CLARITY TRAVEL MANAGEMENT,600105917,21.10,197694731
Dept of Health,MHRA,09/08/2016,UK Rail/Tube/Tram,Information Management,CLARITY TRAVEL MANAGEMENT,600105917,249.70,197694731
Dept of Health,MHRA,09/08/2016,UK Miscellaneous T&S,"Inspection, Enforcement & Standards",CLARITY TRAVEL MANAGEMENT,600105917,27.00,197694731
Dept of Health,MHRA,09/08/2016,UK Air,"Inspection, Enforcement & Standards",CLARITY TRAVEL MANAGEMENT,600105917,5999.15,197694731
Dept of Health,MHRA,09/08/2016,UK Hotel/Accommodation,"Inspection, Enforcement & Standards",CLARITY TRAVEL MANAGEMENT,600105917,18282.61,197694731
Dept of Health,MHRA,09/08/2016,UK Rail/Tube/Tram,"Inspection, Enforcement & Standards",CLARITY TRAVEL MANAGEMENT,600105917,13484.80,197694731
Dept of Health,MHRA,09/08/2016,Overseas Air,"Inspection, Enforcement & Standards",CLARITY TRAVEL MANAGEMENT,600105917,31004.45,197694731
Dept of Health,MHRA,09/08/2016,Overseas Hotel/Accommodation,"Inspection, Enforcement & Standards",CLARITY TRAVEL MANAGEMENT,600105917,3919.24,197694731
Dept of Health,MHRA,09/08/2016,Overseas Rail/Tram,"Inspection, Enforcement & Standards",CLARITY TRAVEL MANAGEMENT,600105917,53.85,197694731
Dept of Health,MHRA,09/08/2016,Passport/Visa,"Inspection, Enforcement & Standards",CLARITY TRAVEL MANAGEMENT,600105917,1815.72,197694731
Dept of Health,MHRA,09/08/2016,Committee T&S,"Inspection, Enforcement & Standards",CLARITY TRAVEL MANAGEMENT,600105917,112.00,197694731
Dept of Health,MHRA,09/08/2016,Training inc T&S,"Inspection, Enforcement & Standards",CLARITY TRAVEL MANAGEMENT,600105917,3767.87,197694731
Dept of Health,MHRA,09/08/2016,UK Hotel/Accommodation,Licensing,CLARITY TRAVEL MANAGEMENT,600105917,121.00,197694731
Dept of Health,MHRA,09/08/2016,Committee T&S,Licensing,CLARITY TRAVEL MANAGEMENT,600105917,616.40,197694731
Dept of Health,MHRA,09/08/2016,Training inc T&S,Licensing,CLARITY TRAVEL MANAGEMENT,600105917,659.76,197694731
Dept of Health,MHRA,09/08/2016,UK Air,Medical Devices,CLARITY TRAVEL MANAGEMENT,600105917,110.10,197694731
Dept of Health,MHRA,09/08/2016,UK Hotel/Accommodation,Medical Devices,CLARITY TRAVEL MANAGEMENT,600105917,2577.76,197694731
Dept of Health,MHRA,09/08/2016,UK Rail/Tube/Tram,Medical Devices,CLARITY TRAVEL MANAGEMENT,600105917,673.30,197694731
Dept of Health,MHRA,09/08/2016,Overseas Air,Medical Devices,CLARITY TRAVEL MANAGEMENT,600105917,4462.36,197694731
Dept of Health,MHRA,09/08/2016,Overseas Hotel/Accommodation,Medical Devices,CLARITY TRAVEL MANAGEMENT,600105917,903.68,197694731
Dept of Health,MHRA,09/08/2016,Training inc T&S,Medical Devices,CLARITY TRAVEL MANAGEMENT,600105917,2471.82,197694731
Dept of Health,MHRA,09/08/2016,UK Rail/Tube/Tram,Finance & Procurement,CLARITY TRAVEL MANAGEMENT,600105917,236.10,197694731
Dept of Health,MHRA,09/08/2016,Training inc T&S,Finance & Procurement,CLARITY TRAVEL MANAGEMENT,600105917,66.20,197694731
Dept of Health,MHRA,09/08/2016,UK Air,Policy,CLARITY TRAVEL MANAGEMENT,600105917,246.14,197694731
Dept of Health,MHRA,09/08/2016,UK Hotel/Accommodation,Policy,CLARITY TRAVEL MANAGEMENT,600105917,85.00,197694731
Dept of Health,MHRA,09/08/2016,UK Rail/Tube/Tram,Policy,CLARITY TRAVEL MANAGEMENT,600105917,332.10,197694731
Dept of Health,MHRA,09/08/2016,Overseas Hotel/Accommodation,Policy,CLARITY TRAVEL MANAGEMENT,600105917,207.67,197694731
Dept of Health,MHRA,09/08/2016,Training inc T&S,Policy,CLARITY TRAVEL MANAGEMENT,600105917,25.33,197694731
Dept of Health,MHRA,09/08/2016,UK Air,Vigilance and Risk Management of Medicines,CLARITY TRAVEL MANAGEMENT,600105917,371.19,197694731
Dept of Health,MHRA,09/08/2016,UK Hotel/Accommodation,Vigilance and Risk Management of Medicines,CLARITY TRAVEL MANAGEMENT,600105917,85.00,197694731
Dept of Health,MHRA,09/08/2016,UK Rail/Tube/Tram,Vigilance and Risk Management of Medicines,CLARITY TRAVEL MANAGEMENT,600105917,297.00,197694731
Dept of Health,MHRA,09/08/2016,Overseas Air,Vigilance and Risk Management of Medicines,CLARITY TRAVEL MANAGEMENT,600105917,3259.78,197694731
Dept of Health,MHRA,09/08/2016,Overseas Hotel/Accommodation,Vigilance and Risk Management of Medicines,CLARITY TRAVEL MANAGEMENT,600105917,273.37,197694731
Dept of Health,MHRA,09/08/2016,Training inc T&S,Vigilance and Risk Management of Medicines,CLARITY TRAVEL MANAGEMENT,600105917,3386.71,197694731
Dept of Health,MHRA,11/08/2016,Infrastructure Services and Maintenance,Information Management,FOCUS GROUP EUROPE LTD,600105981,60600.00,976362481
Dept of Health,MHRA,16/08/2016,Capital Expenditure,"Inspection, Enforcement & Standards",OMICRON RESEARCH LIMITED,600106057,78467.99,584511238
Dept of Health,MHRA,17/08/2016,Professional Subscriptions,Information Management,GARTNER UK LTD,600105875,124320.00,635878884
Dept of Health,MHRA,17/08/2016,Infrastructure Services and Maintenance,Information Management,SUNGARD AVAILABILITY SERVICES (UK) LIMITED,600106036,161970.00,823829709
Dept of Health,MHRA,17/08/2016,Infrastructure Services and Maintenance,Information Management,REDROCK CONSULTING LTD,600105980,28316.02,862247715
Dept of Health,MHRA,17/08/2016,Capital Expenditure,Information Management,REDROCK CONSULTING LTD,600106031,66281.23,862247715
Dept of Health,MHRA,17/08/2016,Testing Services,Information Management,HOME OFFICE,600105864,30840.00,888816061
Dept of Health,MHRA,19/08/2016,Application Services and Maintenance,Information Management,ACCENTURE,600105920,246500.00,788629066
Dept of Health,MHRA,22/08/2016,Capital Expenditure,Information Management,CSA WAVERLEY,600105863,263403.22,333295266
Dept of Health,MHRA,24/08/2016,Help desk and end user support,Information Management,CORETX MANAGE LIMITED,600106238,39650.00,123385037
Dept of Health,MHRA,24/08/2016,Infrastructure Services and Maintenance,Information Management,NTT DATA UK LIMITED,600105993,138788.60,159334590
Dept of Health,MHRA,24/08/2016,Software & Licenses,Information Management,SPECIALIST COMPUTER CENTRES PLC,600106217,33286.14,313651680
Dept of Health,MHRA,24/08/2016,Printing Costs,"Inspection, Enforcement & Standards",WILLIAMS LEA,600106252,39304.80,662774703
Dept of Health,MHRA,24/08/2016,Application Services and Maintenance,Information Management,ACCENTURE,600105959,26500.00,788629066
Dept of Health,MHRA,24/08/2016,"Service, Integration & Management",Information Management,REDROCK CONSULTING LTD,600105972,89406.24,862247715
Dept of Health,MHRA,24/08/2016,"Service, Integration & Management",Information Management,REDROCK CONSULTING LTD,600105974,52877.62,862247715
Dept of Health,MHRA,24/08/2016,Infrastructure Services and Maintenance,Information Management,REDROCK CONSULTING LTD,600106160,36175.73,862247715
Dept of Health,MHRA,24/08/2016,"Service, Integration & Management",Information Management,REDROCK CONSULTING LTD,600106213,33684.48,862247715
Dept of Health,MHRA,26/08/2016,Testing Services,Information Management,HOME OFFICE,600106287,27600.00,888816061
Dept of Health,MHRA,26/08/2016,European project expenditure,Vigilance and Risk Management of Medicines,PRESENCIA BY MA,600106261,43724.35,
